[Event "*** Titled Tuesday Blitz"]
[Site "Chess.com"]
[Date "2019.11.05"]
[Round "2"]
[White "littleplotkin"]
[Black "Firouzja2003"]
[Result "0-1"]
[WhiteElo "2669"]
[BlackElo "3071"]
[TimeControl "180+2"]
[EndTime "13:22:19 PST"]
[Termination "Firouzja2003 won by checkmate"]

1. e4 {[%clk 0:03:01.9]} 1... e5 {[%clk 0:03:00.7]} 2. Nf3 {[%clk 0:03:02]} 2...
Nc6 {[%clk 0:03:02.1]} 3. Bb5 {[%clk 0:03:02]} 3... a6 {[%clk 0:03:03]} 4. Ba4
{[%clk 0:03:03.4]} 4... Nf6 {[%clk 0:03:03.7]} 5. O-O {[%clk 0:03:03.9]} 5...
Be7 {[%clk 0:03:04.4]} 6. Re1 {[%clk 0:03:05.4]} 6... b5 {[%clk 0:03:05.4]} 7.
Bb3 {[%clk 0:03:06.1]} 7... O-O {[%clk 0:03:05.2]} 8. c3 {[%clk 0:03:05.4]} 8...
d5 {[%clk 0:03:04.1]} 9. exd5 {[%clk 0:03:04.9]} 9... Nxd5 {[%clk 0:03:06]} 10.
h3 {[%clk 0:03:03.6]} 10... Bb7 {[%clk 0:02:49.6]} 11. d3 {[%clk 0:03:01.8]}
11... f6 {[%clk 0:02:43]} 12. d4 {[%clk 0:02:58.6]} 12... exd4 {[%clk
0:02:39.9]} 13. Nxd4 {[%clk 0:03:00.5]} 13... Nxd4 {[%clk 0:02:37.8]} 14. cxd4
{[%clk 0:03:02.4]} 14... Kh8 {[%clk 0:02:34.4]} 15. Nc3 {[%clk 0:03:00.9]} 15...
Bb4 {[%clk 0:02:35.1]} 16. Bd2 {[%clk 0:03:01.3]} 16... Bxc3 {[%clk 0:02:36.2]}
17. Bxc3 {[%clk 0:03:03.2]} 17... Qd7 {[%clk 0:02:31.3]} 18. Qd2 {[%clk
0:02:59.5]} 18... Rfe8 {[%clk 0:02:23.2]} 19. Rxe8+ {[%clk 0:02:55.2]} 19...
Rxe8 {[%clk 0:02:12.1]} 20. Re1 {[%clk 0:02:57.1]} 20... Rxe1+ {[%clk
0:02:05.1]} 21. Qxe1 {[%clk 0:02:59]} 21... Nf4 {[%clk 0:02:05.8]} 22. f3 {[%clk
0:02:55.2]} 22... Bd5 {[%clk 0:02:04.5]} 23. Bc2 {[%clk 0:02:43.2]} 23... Bxa2
{[%clk 0:01:35.5]} 24. Qe4 {[%clk 0:02:06.5]} 24... Ng6 {[%clk 0:01:21.7]} 25.
Qa8+ {[%clk 0:01:55.1]} 25... Bg8 {[%clk 0:01:22.8]} 26. Qxa6 {[%clk 0:01:50.8]}
26... b4 {[%clk 0:01:22]} 27. Ba4 {[%clk 0:01:18.3]} 27... Qd8 {[%clk
0:01:14.3]} 28. Be1 {[%clk 0:01:19.5]} 28... Qxd4+ {[%clk 0:01:15.2]} 29. Kh2
{[%clk 0:01:20.9]} 29... Qxb2 {[%clk 0:01:06.6]} 30. Bg3 {[%clk 0:01:22.2]}
30... b3 {[%clk 0:01:03.5]} 31. Bxc7 {[%clk 0:01:09.1]} 31... Qa2 {[%clk
0:01:00.6]} 32. Qb5 {[%clk 0:01:05.4]} 32... Nh4 {[%clk 0:00:53.2]} 33. Kg3
{[%clk 0:01:05.1]} 33... Qxg2+ {[%clk 0:00:52.9]} 34. Kf4 {[%clk 0:01:06.3]}
34... Qxf3# {[%clk 0:00:53.2]} 0-1

[Event "*** Titled Tuesday Blitz"]
[Site "Chess.com"]
[Date "2019.11.05"]
[Round "2"]
[White "Gabrielian_Artur"]
[Black "misha_chessone"]
[Result "1-0"]
[WhiteElo "2831"]
[BlackElo "2563"]
[TimeControl "180+2"]
[EndTime "13:22:19 PST"]
[Termination "Gabrielian_Artur won by checkmate"]

1. e4 {[%clk 0:03:01.9]} 1... e6 {[%clk 0:03:00.6]} 2. d4 {[%clk 0:03:02.5]}
2... d5 {[%clk 0:03:01.9]} 3. Nd2 {[%clk 0:03:02.6]} 3... c5 {[%clk 0:03:02.2]}
4. Ngf3 {[%clk 0:03:03.1]} 4... Nc6 {[%clk 0:03:02.3]} 5. Bb5 {[%clk 0:03:02.6]}
5... cxd4 {[%clk 0:02:58.6]} 6. Nxd4 {[%clk 0:03:03.4]} 6... Bd7 {[%clk
0:02:51.8]} 7. Nxc6 {[%clk 0:03:04.3]} 7... Bxc6 {[%clk 0:02:47.1]} 8. Bxc6+
{[%clk 0:03:04.9]} 8... bxc6 {[%clk 0:02:48]} 9. c4 {[%clk 0:03:05]} 9... Nf6
{[%clk 0:02:44.7]} 10. Qa4 {[%clk 0:03:02.8]} 10... Qd7 {[%clk 0:02:27.4]} 11.
e5 {[%clk 0:03:00.1]} 11... Ng8 {[%clk 0:02:20.6]} 12. O-O {[%clk 0:02:52.3]}
12... Bc5 {[%clk 0:02:19.1]} 13. Rd1 {[%clk 0:02:39.4]} 13... Ne7 {[%clk
0:02:17]} 14. Ne4 {[%clk 0:02:37.1]} 14... Bb6 {[%clk 0:01:59.2]} 15. Nd6+
{[%clk 0:02:23.1]} 15... Kf8 {[%clk 0:01:59.2]} 16. Bg5 {[%clk 0:02:07.8]} 16...
Nc8 {[%clk 0:01:41.9]} 17. cxd5 {[%clk 0:02:07]} 17... exd5 {[%clk 0:01:37.1]}
18. Rxd5 {[%clk 0:02:07]} 18... Nxd6 {[%clk 0:01:30.8]} 19. Rxd6 {[%clk
0:02:03.3]} 19... Qf5 {[%clk 0:01:26.2]} 20. Qf4 {[%clk 0:01:46.2]} 20... Qxf4
{[%clk 0:00:59]} 21. Bxf4 {[%clk 0:01:46.7]} 21... Ke7 {[%clk 0:00:48.7]} 22.
Rad1 {[%clk 0:01:38.1]} 22... h6 {[%clk 0:00:25.5]} 23. Rd7+ {[%clk 0:01:37.3]}
23... Ke6 {[%clk 0:00:26]} 24. R1d6+ {[%clk 0:01:37.4]} 24... Kf5 {[%clk
0:00:27]} 25. Rxf7+ {[%clk 0:01:38.2]} 25... Ke4 {[%clk 0:00:27.8]} 26. Kf1
{[%clk 0:01:37.6]} 26... Bd4 {[%clk 0:00:21.5]} 27. Ke2 {[%clk 0:01:36.1]} 27...
Bxe5 {[%clk 0:00:12.4]} 28. f3# {[%clk 0:01:36.4]} 1-0

[Event "*** Titled Tuesday Blitz"]
[Site "Chess.com"]
[Date "2019.11.05"]
[Round "2"]
[White "moro182"]
[Black "BIG_Pirate"]
[Result "1-0"]
[WhiteElo "2722"]
[BlackElo "2418"]
[TimeControl "180+2"]
[EndTime "13:22:19 PST"]
[Termination "moro182 won on time"]

1. d4 {[%clk 0:02:57.5]} 1... d5 {[%clk 0:02:55]} 2. c4 {[%clk 0:02:58.2]} 2...
c6 {[%clk 0:02:54.6]} 3. Nf3 {[%clk 0:02:58.8]} 3... Nf6 {[%clk 0:02:55.2]} 4.
e3 {[%clk 0:03:00.3]} 4... g6 {[%clk 0:02:53.6]} 5. b3 {[%clk 0:02:59.7]} 5...
Bg7 {[%clk 0:02:54]} 6. Bb2 {[%clk 0:03:01.2]} 6... O-O {[%clk 0:02:55.2]} 7.
Be2 {[%clk 0:03:02.4]} 7... a6 {[%clk 0:02:54.6]} 8. Nbd2 {[%clk 0:03:02.9]}
8... Nbd7 {[%clk 0:02:35.5]} 9. O-O {[%clk 0:03:02.6]} 9... c5 {[%clk
0:02:36.3]} 10. Rc1 {[%clk 0:02:56.4]} 10... b6 {[%clk 0:02:31.1]} 11. dxc5
{[%clk 0:02:40]} 11... Nxc5 {[%clk 0:02:31]} 12. b4 {[%clk 0:02:40.9]} 12... Ne6
{[%clk 0:02:13.7]} 13. c5 {[%clk 0:02:41.2]} 13... bxc5 {[%clk 0:02:11.1]} 14.
bxc5 {[%clk 0:02:43.1]} 14... Nc7 {[%clk 0:01:25.9]} 15. Nb3 {[%clk 0:02:36.4]}
15... Bg4 {[%clk 0:01:21.2]} 16. Ne5 {[%clk 0:02:31.4]} 16... Bxe2 {[%clk
0:01:19.9]} 17. Qxe2 {[%clk 0:02:33.3]} 17... Qc8 {[%clk 0:01:12.5]} 18. Rfd1
{[%clk 0:02:30.6]} 18... Rb8 {[%clk 0:01:07]} 19. Nc6 {[%clk 0:02:29.5]} 19...
Qb7 {[%clk 0:00:55.2]} 20. Nxb8 {[%clk 0:02:26.9]} 20... Rxb8 {[%clk 0:00:57.1]}
21. c6 {[%clk 0:02:25]} 21... Qc8 {[%clk 0:00:50.4]} 22. Be5 {[%clk 0:02:21]}
22... e6 {[%clk 0:00:37.3]} 23. Qb2 {[%clk 0:02:04.9]} 23... Nfe8 {[%clk
0:00:33.4]} 24. Bxg7 {[%clk 0:02:05.4]} 24... Nxg7 {[%clk 0:00:35.3]} 25. Qe5
{[%clk 0:02:03.7]} 25... Nf5 {[%clk 0:00:14.7]} 26. Nc5 {[%clk 0:02:01.2]} 26...
Rb5 {[%clk 0:00:05.2]} 27. Nd7 {[%clk 0:01:59.8]} 27... h5 {[%clk 0:00:03.5]}
28. a4 {[%clk 0:01:52.1]} 28... Rb4 {[%clk 0:00:03.3]} 29. e4 {[%clk 0:01:46.1]}
29... Rxe4 {[%clk 0:00:03]} 30. Nf6+ {[%clk 0:01:46.7]} 1-0

[Event "*** Titled Tuesday Blitz"]
[Site "Chess.com"]
[Date "2019.11.05"]
[Round "2"]
[White "el-reptiliano"]
[Black "RainForestt"]
[Result "0-1"]
[WhiteElo "2290"]
[BlackElo "2524"]
[TimeControl "180+2"]
[EndTime "13:22:22 PST"]
[Termination "RainForestt won by resignation"]

1. Nf3 {[%clk 0:03:01.9]} 1... d5 {[%clk 0:02:59.2]} 2. e3 {[%clk 0:03:02.7]}
2... Nf6 {[%clk 0:02:56.6]} 3. c4 {[%clk 0:03:03.6]} 3... c6 {[%clk 0:02:56.3]}
4. Nc3 {[%clk 0:03:04.7]} 4... Bg4 {[%clk 0:02:44.9]} 5. cxd5 {[%clk 0:03:05]}
5... cxd5 {[%clk 0:02:43.3]} 6. Qb3 {[%clk 0:03:05.8]} 6... Nc6 {[%clk
0:02:21.4]} 7. Qxb7 {[%clk 0:02:59.5]} 7... Bd7 {[%clk 0:02:18.5]} 8. Qb3 {[%clk
0:02:19.5]} 8... Rb8 {[%clk 0:02:11.1]} 9. Qc2 {[%clk 0:02:20.3]} 9... e5 {[%clk
0:02:09.7]} 10. d4 {[%clk 0:02:17.6]} 10... exd4 {[%clk 0:02:07.7]} 11. Nxd4
{[%clk 0:02:17.7]} 11... Bd6 {[%clk 0:01:56.5]} 12. Bb5 {[%clk 0:02:04.7]} 12...
Nxd4 {[%clk 0:01:48.8]} 13. Bxd7+ {[%clk 0:02:06.6]} 13... Qxd7 {[%clk
0:01:47.1]} 14. exd4 {[%clk 0:02:08.5]} 14... O-O {[%clk 0:01:40.6]} 15. O-O
{[%clk 0:02:06.8]} 15... Rfe8 {[%clk 0:01:41.9]} 16. h3 {[%clk 0:01:37.5]} 16...
Qb7 {[%clk 0:01:36.7]} 17. g3 {[%clk 0:01:08.2]} 17... Ne4 {[%clk 0:01:27.6]}
18. Rb1 {[%clk 0:00:58.5]} 18... Qc7 {[%clk 0:01:18.6]} 19. Qd3 {[%clk
0:00:21.3]} 19... Nxc3 {[%clk 0:01:14.2]} 20. bxc3 {[%clk 0:00:22.3]} 20... Rxb1
{[%clk 0:01:08.6]} 21. Qxb1 {[%clk 0:00:22.9]} 21... Bxg3 {[%clk 0:01:08]} 22.
fxg3 {[%clk 0:00:24.2]} 22... Qxg3+ {[%clk 0:01:06.2]} 23. Kh1 {[%clk
0:00:25.7]} 23... Qxh3+ {[%clk 0:01:04.9]} 24. Kg1 {[%clk 0:00:26.5]} 24... Qg3+
{[%clk 0:01:04.7]} 25. Kh1 {[%clk 0:00:27.9]} 25... Re2 {[%clk 0:01:02.1]} 0-1

[Event "*** Titled Tuesday Blitz"]
[Site "Chess.com"]
[Date "2019.11.05"]
[Round "2"]
[White "ExploringChess"]
[Black "DrRiebert"]
[Result "0-1"]
[WhiteElo "2710"]
[BlackElo "2393"]
[TimeControl "180+2"]
[EndTime "13:22:23 PST"]
[Termination "DrRiebert won by resignation"]

1. e4 {[%clk 0:03:01.9]} 1... c5 {[%clk 0:02:54.5]} 2. Nf3 {[%clk 0:03:01.4]}
2... Nc6 {[%clk 0:02:54.8]} 3. Bb5 {[%clk 0:03:00.9]} 3... g6 {[%clk 0:02:53]}
4. Bxc6 {[%clk 0:03:00]} 4... dxc6 {[%clk 0:02:54.9]} 5. h3 {[%clk 0:03:00.9]}
5... Bg7 {[%clk 0:02:56.2]} 6. d3 {[%clk 0:02:57.3]} 6... e5 {[%clk 0:02:57]} 7.
Be3 {[%clk 0:02:54.7]} 7... b6 {[%clk 0:02:58.1]} 8. Nc3 {[%clk 0:02:55.5]} 8...
Qc7 {[%clk 0:02:55.1]} 9. Qd2 {[%clk 0:02:56]} 9... h6 {[%clk 0:02:53.9]} 10.
Nh2 {[%clk 0:02:55.5]} 10... g5 {[%clk 0:02:51.1]} 11. Ne2 {[%clk 0:02:52.7]}
11... Ne7 {[%clk 0:02:38.2]} 12. Ng3 {[%clk 0:02:50.2]} 12... Ng6 {[%clk
0:02:37.9]} 13. Nf5 {[%clk 0:02:49.6]} 13... Bxf5 {[%clk 0:02:34.4]} 14. exf5
{[%clk 0:02:50.5]} 14... Nf4 {[%clk 0:02:35.4]} 15. Bxf4 {[%clk 0:02:52]} 15...
exf4 {[%clk 0:02:35.8]} 16. Qe2+ {[%clk 0:02:52.8]} 16... Kd7 {[%clk 0:02:17.6]}
17. O-O-O {[%clk 0:02:47.9]} 17... Rae8 {[%clk 0:02:17]} 18. Qg4 {[%clk
0:02:47.3]} 18... Bf6 {[%clk 0:02:18]} 19. h4 {[%clk 0:02:27.6]} 19... h5 {[%clk
0:02:16.2]} 20. Qf3 {[%clk 0:02:01.9]} 20... g4 {[%clk 0:02:13.8]} 21. Nxg4
{[%clk 0:02:02.9]} 21... hxg4 {[%clk 0:02:15]} 22. Qxg4 {[%clk 0:02:03.1]} 22...
Qe5 {[%clk 0:02:08.7]} 23. c3 {[%clk 0:02:00.5]} 23... Reg8 {[%clk 0:01:58.5]}
24. Qf3 {[%clk 0:01:59.4]} 24... Rxh4 {[%clk 0:01:57.7]} 25. d4 {[%clk 0:01:49]}
25... cxd4 {[%clk 0:01:57.2]} 26. Rxd4+ {[%clk 0:01:47.1]} 26... Qxd4 {[%clk
0:01:54.9]} 27. Rxh4 {[%clk 0:01:45.2]} 27... Qd5 {[%clk 0:01:50.5]} 28. Qxd5+
{[%clk 0:01:31.2]} 28... cxd5 {[%clk 0:01:52.4]} 29. Rh2 {[%clk 0:01:32.2]}
29... Rg5 {[%clk 0:01:49]} 30. Kd2 {[%clk 0:01:24.4]} 30... Rxf5 {[%clk
0:01:50]} 31. Rh7 {[%clk 0:01:23.3]} 31... Ke6 {[%clk 0:01:48.2]} 32. Ke2 {[%clk
0:01:24.3]} 32... f3+ {[%clk 0:01:47.4]} 33. gxf3 {[%clk 0:01:24.5]} 33... Re5+
{[%clk 0:01:48.3]} 34. Kd2 {[%clk 0:01:23.7]} 34... Bg5+ {[%clk 0:01:48.9]} 35.
Kd1 {[%clk 0:01:19.4]} 35... Bf6 {[%clk 0:01:44.3]} 36. a4 {[%clk 0:01:15.9]}
36... Rf5 {[%clk 0:01:42.2]} 37. Ke2 {[%clk 0:01:14.8]} 37... Rf4 {[%clk
0:01:43.5]} 38. a5 {[%clk 0:01:08.3]} 38... Rh4 {[%clk 0:01:42.4]} 39. Rxh4
{[%clk 0:01:00.8]} 39... Bxh4 {[%clk 0:01:44.3]} 40. axb6 {[%clk 0:00:58.6]}
40... axb6 {[%clk 0:01:46.2]} 41. Kd3 {[%clk 0:00:56.8]} 41... Bxf2 {[%clk
0:01:41]} 0-1

[Event "*** Titled Tuesday Blitz"]
[Site "Chess.com"]
[Date "2019.11.05"]
[Round "2"]
[White "SCIM"]
[Black "novocane"]
[Result "1-0"]
[WhiteElo "2458"]
[BlackElo "2177"]
[TimeControl "180+2"]
[EndTime "13:22:27 PST"]
[Termination "SCIM won by resignation"]

1. d4 {[%clk 0:03:01.9]} 1... Nf6 {[%clk 0:03:00.4]} 2. c4 {[%clk 0:03:01.9]}
2... e6 {[%clk 0:03:00.9]} 3. Nc3 {[%clk 0:03:00.8]} 3... Bb4 {[%clk 0:03:01.2]}
4. a3 {[%clk 0:03:02.4]} 4... Bxc3+ {[%clk 0:03:01.1]} 5. bxc3 {[%clk
0:03:04.3]} 5... Nc6 {[%clk 0:03:01]} 6. f3 {[%clk 0:03:01.2]} 6... b6 {[%clk
0:02:48.8]} 7. e4 {[%clk 0:03:00.8]} 7... Ba6 {[%clk 0:02:46.7]} 8. Bd3 {[%clk
0:03:00.6]} 8... Na5 {[%clk 0:02:39.2]} 9. Qe2 {[%clk 0:03:01]} 9... c5 {[%clk
0:02:31.2]} 10. Bg5 {[%clk 0:02:58]} 10... h6 {[%clk 0:02:20.3]} 11. Bh4 {[%clk
0:02:58.2]} 11... g5 {[%clk 0:01:42.8]} 12. Bg3 {[%clk 0:02:58.8]} 12... Nh5
{[%clk 0:01:25.4]} 13. Be5 {[%clk 0:02:50.4]} 13... Nf4 {[%clk 0:01:23.4]} 14.
Bxf4 {[%clk 0:02:46.1]} 14... gxf4 {[%clk 0:01:24.1]} 15. Nh3 {[%clk 0:02:39.3]}
15... Qh4+ {[%clk 0:01:17]} 16. Nf2 {[%clk 0:02:33.2]} 16... Rg8 {[%clk
0:01:08.2]} 17. O-O {[%clk 0:02:29.3]} 17... O-O-O {[%clk 0:00:50.9]} 18. e5
{[%clk 0:02:21.1]} 18... Rg5 {[%clk 0:00:21.4]} 19. Ne4 {[%clk 0:02:17.1]} 19...
Rdg8 {[%clk 0:00:19.6]} 20. Nxg5 {[%clk 0:02:08.2]} 20... hxg5 {[%clk
0:00:19.2]} 21. dxc5 {[%clk 0:01:58.7]} 21... g4 {[%clk 0:00:09.7]} 22. fxg4
{[%clk 0:01:54.8]} 22... bxc5 {[%clk 0:00:08.6]} 23. Rxf4 {[%clk 0:01:50.7]}
23... Nc6 {[%clk 0:00:08.5]} 24. Raf1 {[%clk 0:01:39.9]} 24... Bb7 {[%clk
0:00:08.1]} 25. Be4 {[%clk 0:01:38.8]} 25... Ne7 {[%clk 0:00:06.7]} 26. Bxb7+
{[%clk 0:01:38]} 26... Kxb7 {[%clk 0:00:08.6]} 27. Rxf7 {[%clk 0:01:34.5]} 27...
Rxg4 {[%clk 0:00:07.1]} 28. Rxe7 {[%clk 0:01:31.2]} 1-0

[Event "*** Titled Tuesday Blitz"]
[Site "Chess.com"]
[Date "2019.11.05"]
[Round "2"]
[White "Shield12"]
[Black "olksuna"]
[Result "1-0"]
[WhiteElo "2809"]
[BlackElo "2553"]
[TimeControl "180+2"]
[EndTime "13:22:32 PST"]
[Termination "Shield12 won by resignation"]

1. e4 {[%clk 0:03:01.9]} 1... c5 {[%clk 0:03:00.1]} 2. Nf3 {[%clk 0:03:02.9]}
2... Nc6 {[%clk 0:03:00.7]} 3. d4 {[%clk 0:03:03.9]} 3... cxd4 {[%clk 0:03:02]}
4. Nxd4 {[%clk 0:03:05.8]} 4... g6 {[%clk 0:03:01]} 5. c4 {[%clk 0:03:05.6]}
5... Bg7 {[%clk 0:03:01.1]} 6. Be3 {[%clk 0:03:06.6]} 6... Nf6 {[%clk
0:03:01.2]} 7. Nc3 {[%clk 0:03:07.3]} 7... Ng4 {[%clk 0:03:02.4]} 8. Qxg4 {[%clk
0:03:07.9]} 8... Nxd4 {[%clk 0:03:03.8]} 9. Qd1 {[%clk 0:03:09.8]} 9... e5
{[%clk 0:03:04.9]} 10. Bd3 {[%clk 0:03:09.4]} 10... d6 {[%clk 0:03:04.4]} 11.
O-O {[%clk 0:03:09.9]} 11... O-O {[%clk 0:03:05.3]} 12. a4 {[%clk 0:03:11.1]}
12... Be6 {[%clk 0:02:59.2]} 13. a5 {[%clk 0:03:11.7]} 13... Rc8 {[%clk
0:02:57.6]} 14. Nd5 {[%clk 0:03:12.7]} 14... f5 {[%clk 0:02:52.4]} 15. Bxd4
{[%clk 0:03:03.1]} 15... exd4 {[%clk 0:02:52.2]} 16. exf5 {[%clk 0:03:03.7]}
16... Bxf5 {[%clk 0:02:05.5]} 17. Re1 {[%clk 0:03:04.4]} 17... Re8 {[%clk
0:02:04.3]} 18. Rxe8+ {[%clk 0:03:02.6]} 18... Qxe8 {[%clk 0:02:04.7]} 19. Bxf5
{[%clk 0:03:04.5]} 19... gxf5 {[%clk 0:02:05.5]} 20. Qd3 {[%clk 0:03:02.4]}
20... Qe6 {[%clk 0:02:01.3]} 21. Kf1 {[%clk 0:03:01.9]} 21... Rf8 {[%clk
0:01:38.2]} 22. Re1 {[%clk 0:03:01.6]} 22... Qh6 {[%clk 0:01:39.8]} 23. h3
{[%clk 0:02:58.5]} 23... f4 {[%clk 0:01:41.2]} 24. Qf3 {[%clk 0:02:44]} 24...
Kh8 {[%clk 0:01:34]} 25. b3 {[%clk 0:02:41.8]} 25... Qg6 {[%clk 0:01:33.4]} 26.
Re4 {[%clk 0:02:37.4]} 26... Be5 {[%clk 0:00:55.1]} 27. Nb4 {[%clk 0:02:31.7]}
27... Bg7 {[%clk 0:00:33.1]} 28. Nd3 {[%clk 0:02:31.9]} 28... Rf5 {[%clk
0:00:28.2]} 29. b4 {[%clk 0:02:12.2]} 29... d5 {[%clk 0:00:23.8]} 30. cxd5
{[%clk 0:02:10.3]} 30... Rf8 {[%clk 0:00:23.6]} 31. Nxf4 {[%clk 0:02:06.7]}
31... Qd6 {[%clk 0:00:25]} 32. g3 {[%clk 0:02:02.7]} 32... Qxb4 {[%clk
0:00:25.7]} 33. Kg2 {[%clk 0:02:02.4]} 33... Qxa5 {[%clk 0:00:26.4]} 34. d6
{[%clk 0:02:01.6]} 34... Qc3 {[%clk 0:00:23.5]} 35. d7 {[%clk 0:01:54.3]} 35...
Bf6 {[%clk 0:00:21.8]} 36. Re8 {[%clk 0:01:51.6]} 36... Qxf3+ {[%clk 0:00:20.8]}
37. Kxf3 {[%clk 0:01:53.5]} 37... Kg8 {[%clk 0:00:22.1]} 38. Ne6 {[%clk
0:01:53.1]} 1-0

[Event "*** Titled Tuesday Blitz"]
[Site "Chess.com"]
[Date "2019.11.05"]
[Round "2"]
[White "Iyael"]
[Black "temus_galaktionov"]
[Result "0-1"]
[WhiteElo "2090"]
[BlackElo "2691"]
[TimeControl "180+2"]
[EndTime "13:22:37 PST"]
[Termination "temus_galaktionov won by resignation"]

1. e4 {[%clk 0:03:01.9]} 1... c6 {[%clk 0:03:01.9]} 2. d4 {[%clk 0:03:01.9]}
2... g6 {[%clk 0:02:54.5]} 3. Nc3 {[%clk 0:03:02.1]} 3... Bg7 {[%clk 0:02:55.5]}
4. Nf3 {[%clk 0:03:02.1]} 4... d6 {[%clk 0:02:56.8]} 5. h3 {[%clk 0:03:01.1]}
5... Nd7 {[%clk 0:02:58.2]} 6. Be3 {[%clk 0:03:01]} 6... e5 {[%clk 0:02:59]} 7.
a4 {[%clk 0:02:56]} 7... Ngf6 {[%clk 0:02:54]} 8. Bc4 {[%clk 0:02:55.6]} 8...
Qe7 {[%clk 0:02:49.4]} 9. d5 {[%clk 0:02:51.3]} 9... c5 {[%clk 0:02:43.4]} 10.
O-O {[%clk 0:02:50.3]} 10... O-O {[%clk 0:02:44.3]} 11. Qd2 {[%clk 0:02:49.7]}
11... Nh5 {[%clk 0:02:44.1]} 12. Bh6 {[%clk 0:02:48.7]} 12... f6 {[%clk
0:02:39.8]} 13. a5 {[%clk 0:02:46.3]} 13... f5 {[%clk 0:02:21.6]} 14. Bxg7
{[%clk 0:02:45.7]} 14... Kxg7 {[%clk 0:02:22]} 15. exf5 {[%clk 0:02:42]} 15...
gxf5 {[%clk 0:02:22.2]} 16. Ra3 {[%clk 0:02:35.3]} 16... Kh8 {[%clk 0:02:18.5]}
17. Ne2 {[%clk 0:02:32.2]} 17... Ndf6 {[%clk 0:02:17.7]} 18. Qg5 {[%clk
0:02:26.9]} 18... Rg8 {[%clk 0:02:16.8]} 19. Qh4 {[%clk 0:02:27.6]} 19... Qg7
{[%clk 0:02:15.4]} 20. g3 {[%clk 0:02:23.2]} 20... Bd7 {[%clk 0:02:13]} 21. Nh2
{[%clk 0:02:20.8]} 21... Qg6 {[%clk 0:02:03.6]} 22. Rb3 {[%clk 0:02:17.9]} 22...
Rab8 {[%clk 0:02:03.2]} 23. Re1 {[%clk 0:02:14.4]} 23... Rg7 {[%clk 0:01:57.5]}
24. Rc3 {[%clk 0:02:06.6]} 24... Rbg8 {[%clk 0:01:56.6]} 25. Kh1 {[%clk
0:02:05.4]} 25... Ne4 {[%clk 0:01:43.2]} 26. Rf3 {[%clk 0:02:03.6]} 26... Nhf6
{[%clk 0:01:42.6]} 27. Rg1 {[%clk 0:01:53.8]} 27... Qf7 {[%clk 0:01:42.2]} 28.
Bd3 {[%clk 0:01:51]} 28... Nd2 {[%clk 0:01:35.1]} 29. Re3 {[%clk 0:01:49.5]}
29... c4 {[%clk 0:01:32.5]} 30. Bxc4 {[%clk 0:01:48.1]} 30... Nxc4 {[%clk
0:01:32.8]} 31. Qxc4 {[%clk 0:01:47.9]} 31... Qxd5+ {[%clk 0:01:28.9]} 32. Qxd5
{[%clk 0:01:48.8]} 32... Nxd5 {[%clk 0:01:30.8]} 33. Rd3 {[%clk 0:01:50.3]}
33... Bc6 {[%clk 0:01:31.2]} 34. f3 {[%clk 0:01:51.4]} 34... Rg6 {[%clk
0:01:26.6]} 35. Rf1 {[%clk 0:01:51.6]} 35... Nb4 {[%clk 0:01:24.7]} 36. Rc3
{[%clk 0:01:51.5]} 36... d5 {[%clk 0:01:24.4]} 37. Kg2 {[%clk 0:01:51.4]} 37...
h5 {[%clk 0:01:22.4]} 38. h4 {[%clk 0:01:47.7]} 38... f4 {[%clk 0:01:15.4]} 39.
g4 {[%clk 0:01:45.8]} 39... hxg4 {[%clk 0:01:14.5]} 40. Nxg4 {[%clk 0:01:41.4]}
40... d4 {[%clk 0:01:10.4]} 41. Rxc6 {[%clk 0:01:40.5]} 41... Rxc6 {[%clk
0:01:09.8]} 42. Kf2 {[%clk 0:01:42]} 42... Rxc2 {[%clk 0:01:09.2]} 43. Nxe5
{[%clk 0:01:42.6]} 43... d3 {[%clk 0:01:09.9]} 0-1

[Event "*** Titled Tuesday Blitz"]
[Site "Chess.com"]
[Date "2019.11.05"]
[Round "2"]
[White "boasovietica"]
[Black "Sjakkerntobi"]
[Result "1-0"]
[WhiteElo "2433"]
[BlackElo "2102"]
[TimeControl "180+2"]
[EndTime "13:22:38 PST"]
[Termination "boasovietica won by resignation"]

1. e4 {[%clk 0:03:01.9]} 1... c5 {[%clk 0:03:00.1]} 2. Nf3 {[%clk 0:03:00.9]}
2... e6 {[%clk 0:03:00.6]} 3. Nc3 {[%clk 0:03:00.8]} 3... Nc6 {[%clk 0:03:00.1]}
4. d4 {[%clk 0:03:01.4]} 4... cxd4 {[%clk 0:03:02]} 5. Nxd4 {[%clk 0:03:02.3]}
5... Qc7 {[%clk 0:03:02.9]} 6. Nb3 {[%clk 0:02:55]} 6... a6 {[%clk 0:02:59]} 7.
Bd3 {[%clk 0:02:56]} 7... Nf6 {[%clk 0:02:57.3]} 8. O-O {[%clk 0:02:54.8]} 8...
Bd6 {[%clk 0:02:53.8]} 9. f4 {[%clk 0:02:53.6]} 9... e5 {[%clk 0:02:52.6]} 10.
f5 {[%clk 0:02:48.5]} 10... b5 {[%clk 0:02:48.9]} 11. Bg5 {[%clk 0:02:47.8]}
11... Qa7+ {[%clk 0:02:21.6]} 12. Kh1 {[%clk 0:02:47.5]} 12... Be7 {[%clk
0:02:01.2]} 13. Bxf6 {[%clk 0:02:41]} 13... Bxf6 {[%clk 0:02:03.1]} 14. Nd5
{[%clk 0:02:42.1]} 14... Ne7 {[%clk 0:01:50.9]} 15. Nxf6+ {[%clk 0:02:32.9]}
15... gxf6 {[%clk 0:01:52.8]} 16. a4 {[%clk 0:02:33.8]} 16... b4 {[%clk
0:01:49.6]} 17. Bc4 {[%clk 0:02:26.2]} 17... Bb7 {[%clk 0:01:31.3]} 18. Qh5
{[%clk 0:02:26.5]} 18... d5 {[%clk 0:01:28]} 19. exd5 {[%clk 0:02:23.3]} 19...
Bxd5 {[%clk 0:01:29.9]} 20. Bxd5 {[%clk 0:02:22.5]} 20... Nxd5 {[%clk
0:01:31.8]} 21. Rad1 {[%clk 0:02:19.8]} 21... Ne3 {[%clk 0:01:16.1]} 22. Qf3
{[%clk 0:02:12.2]} 22... Nxd1 {[%clk 0:01:13.1]} 23. Qc6+ {[%clk 0:02:03.8]}
23... Kf8 {[%clk 0:01:11.2]} 24. Rxd1 {[%clk 0:02:03.1]} 24... Rg8 {[%clk
0:00:30.7]} 25. Rd3 {[%clk 0:01:39.1]} 25... Re8 {[%clk 0:00:19.3]} 26. Nc5
{[%clk 0:01:28.1]} 26... Qe7 {[%clk 0:00:20.1]} 27. Rd7 {[%clk 0:01:24.3]} 27...
Qxd7 {[%clk 0:00:16.6]} 28. Nxd7+ {[%clk 0:01:23.6]} 28... Ke7 {[%clk
0:00:18.3]} 29. Nxf6 {[%clk 0:01:24]} 29... Rd8 {[%clk 0:00:18.2]} 30. Nxg8+
{[%clk 0:01:22.1]} 30... Rxg8 {[%clk 0:00:17.7]} 31. f6+ {[%clk 0:01:23]} 31...
Kd8 {[%clk 0:00:17.6]} 32. Qa8+ {[%clk 0:01:23.1]} 32... Kd7 {[%clk 0:00:18.4]}
33. Qxg8 {[%clk 0:01:24.5]} 33... Ke6 {[%clk 0:00:20.3]} 1-0